bitfinex/quotes_BTCUSD_20251224
["timestamp","ask_amount","ask_price","bid_price","bid_amount"]
[1766540521145,1.6e-07,87585.0,87576.0,0.01141865]
[1766540521375,1.6e-07,87585.0,87577.0,0.01141852]
[1766540521748,0.01141764,87585.0,87576.0,0.01144]
[1766540522350,0.03874833,87587.0,87577.0,0.11742]
[1766540522539,0.01141748,87585.0,87577.0,0.11752739]
[1766540522737,0.02733112,87587.0,87578.0,0.00025002]
[1766540523051,0.01141748,87585.0,87579.0,0.11742]
[1766540523246,0.02733112,87587.0,87579.0,0.11742]
[1766540523451,0.02733112,87587.0,87578.0,0.11767002]
[1766540523687,0.13449774,87583.0,87578.0,0.00025002]
[1766540524106,0.12308,87583.0,87578.0,0.00025002]
[1766540524306,0.01141774,87583.0,87578.0,0.00025002]
[1766540524507,0.01141761,87584.0,87579.0,0.11742]
[1766540524759,0.01141748,87585.0,87579.0,0.117063]
[1766540525090,0.01141774,87583.0,87579.0,0.117063]
[1766540525812,0.01141761,87584.0,87579.0,0.117063]
[1766540526209,0.01141748,87585.0,87578.0,0.00025002]
[1766540526410,0.06850408,87586.0,87578.0,0.00025002]
[1766540526613,0.01144,87588.0,87578.0,0.00025002]
[1766540526834,0.01141721,87587.0,87578.0,0.00025002]
[1766540527034,0.01141708,87588.0,87578.0,0.00025002]
[1766540527660,0.02285695,87589.0,87578.0,0.00025002]
[1766540528355,0.01141721,87587.0,87578.0,0.00025002]
[1766540528514,0.02285695,87589.0,87578.0,0.00025002]
[1766540528515,0.01141708,87588.0,87578.0,0.00025002]
[1766540529423,0.01141721,87587.0,87578.0,0.00025002]
[1766540530060,0.01141708,87588.0,87578.0,0.00025002]
[1766540530267,0.02285695,87589.0,87578.0,0.01166841]
[1766540530426,0.02285695,87589.0,87578.0,0.00025002]
[1766540530631,0.02285695,87589.0,87578.0,0.01166841]
[1766540531214,0.01141708,87588.0,87578.0,0.00025002]
[1766540531441,0.02285695,87589.0,87578.0,0.00025002]
[1766540531643,0.02285695,87589.0,87578.0,0.01166841]
[1766540532298,0.01144,87589.0,87579.0,0.01141826]
[1766540532503,0.01144,87589.0,87581.0,0.011418]
[1766540532899,0.01144,87589.0,87580.0,0.01141813]
[1766540533272,0.01144,87589.0,87579.0,0.02111826]
[1766540533720,0.01144,87589.0,87579.0,0.0097]
[1766540533912,0.07994129,87592.0,87578.0,0.01166841]
[1766540534111,0.06852305,87592.0,87578.0,0.01166841]
[1766540534472,0.19160305,87592.0,87578.0,0.01166841]
[1766540534716,0.01141695,87589.0,87578.0,0.01166841]
[1766540535137,0.06852305,87592.0,87578.0,0.00025002]
[1766540535311,0.01141695,87589.0,87578.0,0.00025002]
[1766540535529,0.01141695,87589.0,87578.0,0.01166841]
[1766540535732,0.06852305,87592.0,87578.0,0.01166841]
[1766540535733,0.12308,87591.0,87579.0,0.01141826]
[1766540535936,0.06852305,87592.0,87579.0,0.01141826]
[1766540536109,0.01141682,87590.0,87578.0,0.01166841]
[1766540536310,0.06852305,87592.0,87578.0,0.01166841]
[1766540537428,0.12308,87591.0,87578.0,0.01166841]
[1766540537679,0.01141695,87589.0,87578.0,0.00025002]
[1766540537835,0.01141695,87589.0,87578.0,0.01166841]
[1766540538000,0.06852305,87592.0,87578.0,0.01166841]
[1766540538401,0.01141682,87590.0,87578.0,0.01166841]
[1766540538708,0.13449787,87582.0,87578.0,2e-08]
[1766540538923,0.12362998,87578.0,87576.0,0.01144]
[1766540539128,0.12318735,87578.0,87576.0,0.01144]
[1766540539331,0.12318735,87578.0,87575.0,0.01144]
[1766540539746,0.12318735,87578.0,87575.0,0.01089]
[1766540540417,0.12318735,87578.0,87574.0,0.01154]
[1766540540572,0.13449852,87577.0,87574.0,0.0001]
[1766540540767,0.13449852,87577.0,87573.0,9.5e-07]
[1766540540768,0.12308,87577.0,87573.0,9.5e-07]
[1766540541176,0.12308,87577.0,87568.0,0.01141969]
[1766540541389,0.12308,87577.0,87569.0,0.02285956]
[1766540541791,0.12308,87577.0,87569.0,0.01144]
[1766540542506,0.00010735,87578.0,87569.0,0.01144]
[1766540542507,0.12308,87572.0,87569.0,0.01144]
[1766540543309,0.122531,87572.0,87569.0,0.01144]
[1766540543756,0.122531,87572.0,87568.0,0.01144]
[1766540543906,0.122531,87572.0,87568.0,0.01141969]
[1766540544255,0.122531,87572.0,87568.0,0.02285969]
[1766540544551,0.122531,87572.0,87570.0,0.00025007]
[1766540545054,0.12220008,87572.0,87570.0,0.00025007]
[1766540548007,0.01152574,87578.0,87570.0,0.00025007]
[1766540548594,0.12492,87577.0,87570.0,0.00025007]
[1766540548972,0.01152574,87578.0,87570.0,0.00025007]
[1766540549174,0.00010735,87578.0,87570.0,0.00025007]
[1766540549855,0.01152574,87578.0,87570.0,0.00025007]
[1766540550229,0.12492,87577.0,87570.0,0.00025007]
[1766540550435,0.13633852,87577.0,87570.0,0.00025007]
[1766540550645,0.12492,87577.0,87570.0,0.00025007]
[1766540551342,0.13633852,87577.0,87570.0,0.00025007]
[1766540551702,0.12492,87577.0,87570.0,0.00025007]
[1766540552109,0.12492,87577.0,87571.0,0.0114193]
[1766540552308,0.12492,87577.0,87570.0,0.0116695]
[1766540552543,0.12492,87577.0,87570.0,0.00025007]
[1766540552846,0.12492,87577.0,87570.0,0.0116695]
[1766540553054,0.12492,87577.0,87571.0,0.0114193]
[1766540553612,0.12492,87577.0,87570.0,0.00025007]
[1766540554924,0.00010735,87578.0,87570.0,0.00025007]
[1766540557498,0.00010735,87578.0,87575.0,0.01141878]
[1766540557701,0.12492,87579.0,87575.0,0.01141878]
[1766540557702,0.0570852,87589.0,87576.0,0.01141865]
[1766540557703,0.01144,87588.0,87576.0,0.01141865]
[1766540558029,5.315e-05,87588.0,87578.0,0.01141839]
[1766540558230,0.01141669,87591.0,87576.0,0.06851188]
[1766540558231,0.2048602,87591.0,87576.0,0.01141865]
[1766540558470,0.0799402,87591.0,87577.0,0.01141852]
[1766540558702,0.01141695,87589.0,87578.0,0.01141839]
[1766540558909,0.01141695,87589.0,87577.0,0.01141852]
[1766540559148,0.01141695,87589.0,87576.0,0.01177681]
[1766540559149,0.01141748,87585.0,87576.0,0.00035816]
[1766540559369,0.12492,87584.0,87576.0,0.00035816]
[1766540559585,0.12492,87575.0,87570.0,0.00025007]
[1766540559757,0.12527813,87575.0,87571.0,0.01144]
[1766540559932,0.12527813,87575.0,87571.0,0.0228593]
[1766540560476,0.12527813,87575.0,87572.0,0.01141917]
[1766540561833,0.12527813,87575.0,87571.0,0.0114193]
[1766540562132,0.12527813,87575.0,87572.0,0.01141917]
[1766540562293,0.01141774,87583.0,87571.0,0.0228593]
[1766540562499,0.01141787,87582.0,87571.0,0.01149315]
[1766540562694,0.12037,87581.0,87571.0,0.01149315]
[1766540562895,0.12037,87581.0,87571.0,0.02291245]
[1766540563697,0.12037,87581.0,87571.0,0.01149315]
[1766540563897,0.12037,87581.0,87571.0,0.02291245]
[1766540564602,0.12037,87575.0,87570.0,0.00025007]
[1766540564799,0.12042313,87575.0,87570.0,0.0116695]
[1766540564999,0.12042313,87575.0,87571.0,0.0114193]
[1766540565199,0.12042313,87575.0,87572.0,0.01141917]
[1766540566169,3.13e-06,87575.0,87572.0,0.01141917]
[1766540566510,3.13e-06,87575.0,87571.0,0.0114193]
[1766540566715,3.13e-06,87575.0,87572.0,0.01141917]
[1766540574482,5.3e-05,87572.0,87570.0,0.00025007]
[1766540574684,1.04e-05,87572.0,87570.0,0.00025007]
[1766540574885,0.12037313,87575.0,87570.0,7e-08]
[1766540575198,0.12037313,87575.0,87568.0,0.01141969]
[1766540575918,0.12037313,87575.0,87569.0,0.01141956]
[1766540576241,0.12037313,87575.0,87566.0,0.01164]
[1766540576242,0.00056,87569.0,87566.0,0.01164]
[1766540576449,0.12037313,87575.0,87566.0,0.02305995]
[1766540577810,0.12037313,87575.0,87566.0,0.01164]
[1766540579331,0.12037313,87575.0,87566.0,0.02305995]
[1766540580498,0.12037313,87575.0,87567.0,0.01141982]
[1766540580796,0.12037313,87575.0,87566.0,0.02305995]
[1766540581148,0.12037313,87575.0,87567.0,0.01141982]
[1766540582643,0.12037313,87575.0,87566.0,0.02305995]
[1766540582848,0.12037313,87575.0,87566.0,0.01164]
[1766540583246,0.13451191,87575.0,87566.0,0.01108]
[1766540583631,0.12309,87572.0,87566.0,0.01108]
[1766540591513,0.12309,87572.0,87549.0,0.01177056]
[1766540591514,0.01141969,87568.0,87553.0,0.01172165]
[1766540591747,0.12309,87565.0,87554.0,0.02286152]
[1766540591952,0.13451008,87565.0,87554.0,0.02286152]
[1766540592883,0.13451008,87565.0,87554.0,0.01144]
[1766540593193,0.13451008,87565.0,87554.0,0.02286152]
[1766540594182,0.12309,87564.0,87555.0,0.01144]
[1766540597895,0.12309,87564.0,87555.0,0.02286139]
[1766540598110,0.12309,87564.0,87555.0,0.01144]
[1766540598310,0.12309,87564.0,87555.0,0.02286139]
[1766540599343,0.12309,87564.0,87553.0,0.01172165]
[1766540599344,0.13451021,87564.0,87553.0,0.01172165]
[1766540599544,0.13451021,87564.0,87551.0,0.05730951]
[1766540600710,0.01142034,87563.0,87551.0,0.0002]
[1766540600915,0.12309,87562.0,87551.0,0.01162191]
[1766540601256,0.12309,87562.0,87552.0,0.01142178]
[1766540601655,0.13453,87562.0,87551.0,0.01162191]
[1766540602002,0.14595047,87562.0,87551.0,0.0002]
[1766540602209,0.13453,87562.0,87552.0,0.01142178]
[1766540603158,0.12309,87559.0,87551.0,0.0002]
[1766540603365,0.011421,87558.0,87551.0,0.0002]
[1766540603567,0.011421,87558.0,87544.0,0.01142282]
[1766540603568,0.22840691,87564.0,87536.0,0.0002]
[1766540603569,0.01142217,87549.0,87536.0,0.0002]
[1766540603789,0.0685386,87542.0,87532.0,0.0002]
[1766540603950,0.122541,87541.0,87538.0,0.01142361]
[1766540604129,0.2284324,87554.0,87538.0,0.01142361]
[1766540604130,0.01144,87545.0,87538.0,0.01142361]
[1766540604352,0.01144,87548.0,87540.0,0.01142334]
[1766540604550,0.01144,87552.0,87540.0,0.01142334]
[1766540604799,0.12309,87551.0,87541.0,0.01142321]
[1766540604992,0.12309,87551.0,87541.0,0.01178134]
[1766540605198,0.12309,87551.0,87541.0,0.00035813]
[1766540605350,0.02286178,87552.0,87541.0,0.01178134]
[1766540605553,0.1345123,87548.0,87538.0,0.01144]
[1766540605758,0.12344813,87548.0,87538.0,0.01144]
[1766540606074,0.12344813,87548.0,87538.0,0.02286361]
[1766540606272,0.12344813,87548.0,87539.0,0.01142347]
[1766540606472,0.00035813,87548.0,87540.0,0.01142334]
[1766540606676,0.00035813,87548.0,87539.0,0.01142347]
[1766540606907,0.13451204,87550.0,87539.0,0.01142347]
[1766540607108,0.12309,87549.0,87539.0,0.0117816]
[1766540607312,0.12309,87566.0,87554.0,0.01142152]
[1766540607516,0.02733112,87562.0,87555.0,0.01144]
[1766540607889,0.12544074,87560.0,87549.0,0.01152217]
[1766540608094,0.11402,87554.0,87550.0,0.01144]
[1766540608278,0.11402,87552.0,87545.0,0.01144]
[1766540608720,0.11402,87553.0,87545.0,0.01144]
[1766540608926,0.11402,87551.0,87545.0,0.01144]
[1766540609125,0.11402,87547.0,87541.0,0.01144]
[1766540609344,0.11437813,87547.0,87541.0,0.01144]
[1766540611716,0.11437813,87547.0,87541.0,0.02286321]
[1766540611922,0.11437813,87547.0,87541.0,0.01144]
[1766540612221,0.02286165,87553.0,87541.0,0.02286321]
[1766540612422,0.01144,87553.0,87542.0,0.01142308]
[1766540612754,0.01142178,87552.0,87541.0,0.01154735]
[1766540612961,0.11402,87551.0,87541.0,0.00010735]
[1766540613122,0.11402,87548.0,87541.0,0.01154735]
[1766540613746,0.01142178,87552.0,87541.0,0.02297056]
[1766540614272,0.01142178,87552.0,87541.0,0.01154735]
[1766540614683,0.01142178,87552.0,87541.0,0.02297056]
[1766540614887,0.01142178,87552.0,87542.0,0.01142308]
[1766540615335,0.01142178,87552.0,87541.0,0.02297056]
[1766540616002,0.01142191,87551.0,87541.0,0.01154735]
[1766540616485,0.01142256,87546.0,87541.0,0.00010735]
[1766540616663,0.03875342,87548.0,87541.0,0.00010735]
[1766540616848,0.02733112,87548.0,87541.0,0.00010735]
[1766540617382,0.06853515,87547.0,87541.0,0.00010735]
[1766540617587,0.01142243,87547.0,87541.0,0.00010735]
[1766540618095,0.01142256,87546.0,87541.0,0.00010735]
[1766540618671,0.01142243,87547.0,87541.0,0.00010735]
[1766540619299,0.01142243,87547.0,87539.0,0.00025032]
[1766540619300,0.0685372,87544.0,87539.0,3.2e-07]
[1766540619466,0.01142282,87544.0,87532.0,0.01164]
[1766540619819,0.00010735,87544.0,87532.0,0.02306439]
[1766540620107,0.00010735,87544.0,87533.0,0.01142426]
[1766540620108,0.01153017,87544.0,87533.0,0.01142426]
[1766540620650,0.01142361,87538.0,87532.0,0.0002]
[1766540620854,0.01142347,87539.0,87532.0,0.0002]
[1766540621088,0.01142374,87537.0,87532.0,0.0002]
[1766540621304,0.01142374,87537.0,87530.0,2.3e-07]
[1766540621305,0.01142426,87533.0,87530.0,2.3e-07]
[1766540621557,0.12499,87532.0,87530.0,2.3e-07]
[1766540621723,0.06854557,87533.0,87530.0,2.3e-07]
[1766540621724,0.13643,87543.0,87532.0,0.01142439]
[1766540621902,0.01142321,87541.0,87533.0,0.02733112]
[1766540622115,0.01144,87543.0,87533.0,0.03875538]
[1766540622313,0.01144,87543.0,87530.0,0.50258162]
[1766540622314,0.01142374,87537.0,87525.0,0.1134]
[1766540622482,0.01144,87537.0,87527.0,0.12482504]
[1766540622680,0.01144,87537.0,87527.0,0.1134]
[1766540623150,0.01142387,87536.0,87527.0,0.1134]
[1766540623363,0.01142413,87534.0,87525.0,0.01144]
[1766540623494,0.011424,87535.0,87525.0,0.01144]
[1766540623940,0.0685591,87537.0,87525.0,0.01144]
[1766540624134,0.02286374,87537.0,87526.0,0.1134]
[1766540624352,0.01142387,87536.0,87526.0,0.1134]
[1766540624540,0.01142387,87536.0,87526.0,0.12482517]
[1766540624839,0.02286374,87537.0,87526.0,0.1134]
[1766540625211,0.02286374,87537.0,87526.0,0.12482517]
[1766540625412,0.011424,87535.0,87526.0,0.1134]
[1766540625823,0.01142413,87534.0,87526.0,0.1134]
[1766540626560,0.01142426,87533.0,87526.0,0.1134]
[1766540626718,0.01142452,87531.0,87525.0,0.01144]
[1766540626907,0.01142491,87528.0,87522.0,0.0001]
[1766540627106,0.01142491,87528.0,87508.0,0.03428922]
[1766540627107,0.01142609,87519.0,87505.0,0.01142791]
[1766540627358,0.01142609,87519.0,87507.0,0.12484]
[1766540627359,0.01142661,87515.0,87507.0,0.12484]
[1766540627515,0.01142609,87519.0,87507.0,0.13626765]
[1766540627714,0.01142609,87519.0,87508.0,0.01142752]
[1766540627940,0.01142595,87520.0,87509.0,0.01142739]
[1766540628161,0.01142582,87521.0,87509.0,0.01142739]
[1766540628371,0.02286569,87522.0,87511.0,0.12482713]
[1766540628562,0.01142595,87520.0,87511.0,0.1134]
[1766540629493,0.01142609,87519.0,87511.0,0.1134]
[1766540629671,0.01142648,87516.0,87506.0,0.01164]
[1766540630163,0.01142661,87515.0,87506.0,0.01164]
[1766540630369,0.01142687,87513.0,87506.0,0.01164]
[1766540630728,0.01142674,87514.0,87506.0,0.01164]
[1766540631067,0.01142726,87510.0,87506.0,0.01164]
[1766540631618,0.01142726,87510.0,87506.0,0.0002]
[1766540631823,0.01142739,87509.0,87506.0,0.0002]
[1766540632157,0.01142726,87510.0,87506.0,0.0002]
[1766540633643,0.01142739,87509.0,87506.0,0.0002]
[1766540633847,0.01142739,87509.0,87508.0,0.00071936]
[1766540634802,0.01142726,87510.0,87508.0,0.00071936]
[1766540634961,0.01142713,87511.0,87506.0,0.0002]
[1766540635163,0.01142713,87511.0,87509.0,0.00068808]
[1766540635364,0.01142739,87509.0,87506.0,0.0002]
[1766540635598,0.01112174,87510.0,87506.0,0.0002]
[1766540636096,0.01142739,87509.0,87506.0,0.0002]
[1766540637367,0.01112174,87510.0,87506.0,0.0002]
[1766540637590,0.01142726,87510.0,87506.0,0.0002]
[1766540637795,0.02286713,87511.0,87506.0,0.0002]
[1766540638152,0.01142674,87514.0,87506.0,0.0002]
[1766540638299,0.01142687,87513.0,87506.0,0.11559]
[1766540638485,0.011427,87512.0,87506.0,0.11559]
[1766540638927,0.01142687,87513.0,87506.0,0.11559]
[1766540639523,0.01142713,87511.0,87506.0,0.11559]
[1766540639748,0.011427,87512.0,87506.0,0.11559]
[1766540640277,0.01142674,87514.0,87506.0,0.11559]
[1766540640598,0.02286661,87515.0,87510.0,0.0006568]
[1766540640785,0.02286661,87515.0,87506.0,0.11559]
[1766540642198,0.01142674,87514.0,87506.0,0.11559]
[1766540642756,0.02286661,87515.0,87506.0,0.11559]
[1766540642951,0.06866153,87522.0,87506.0,0.11559]
[1766540643111,0.01144,87521.0,87511.0,0.12681713]
[1766540643450,0.01144,87520.0,87511.0,0.11539]
[1766540643649,0.01144,87519.0,87511.0,0.11539]
[1766540644999,0.01144,87519.0,87512.0,0.05713502]
[1766540645142,0.01142387,87536.0,87522.0,0.11539]
[1766540645341,0.01142413,87534.0,87523.0,0.12681556]
[1766540645579,0.01142439,87532.0,87523.0,0.11539]
[1766540645961,0.01142452,87531.0,87525.0,0.08973]
[1766540646287,0.01142413,87534.0,87525.0,0.08973]
[1766540646435,0.01142426,87533.0,87525.0,0.08973]
[1766540647254,0.01142413,87534.0,87525.0,0.08973]
[1766540647796,5.7e-07,87535.0,87530.0,0.01142465]
[1766540648031,5.7e-07,87536.0,87530.0,0.00973]
[1766540648270,0.02296334,87540.0,87530.0,0.00973]
[1766540648415,0.01142361,87538.0,87530.0,0.00973]
[1766540648601,0.01142374,87537.0,87530.0,0.00973]
[1766540648999,0.01142452,87531.0,87523.0,0.01144]
[1766540649225,0.13371903,87530.0,87522.0,0.00035813]
[1766540649606,0.06854948,87528.0,87522.0,0.00035813]
[1766540649838,0.11544,87529.0,87507.0,0.01142765]
[1766540649839,0.11544,87522.0,87507.0,0.01142765]
[1766540650042,0.01142622,87518.0,87508.0,0.01144]
[1766540650246,0.01142622,87518.0,87508.0,0.02286752]
[1766540650539,0.01142609,87519.0,87508.0,0.02286752]
[1766540651044,0.01142609,87519.0,87509.0,0.01142739]
[1766540651187,0.12686595,87520.0,87509.0,0.01142739]
[1766540651711,0.12686595,87520.0,87508.0,0.03305752]
[1766540651910,0.12686595,87520.0,87519.0,0.00037534]
[1766540652331,0.11544,87520.0,87519.0,0.00037534]
[1766540653116,0.01144,87521.0,87519.0,0.00037534]
[1766540653321,0.01144,87521.0,87512.0,0.01019]
[1766540653553,0.01142452,87531.0,87518.0,0.01142622]
[1766540653731,0.02970394,87528.0,87516.0,0.01142648]
[1766540653954,0.02970394,87528.0,87517.0,0.01142635]
[1766540654159,0.01827903,87528.0,87519.0,0.01142609]
[1766540654568,0.01827903,87528.0,87518.0,0.01142622]
[1766540654732,0.01142517,87526.0,87507.0,0.01142765]
[1766540654935,0.01827903,87514.0,87513.0,0.01144]
[1766540655271,0.11544,87521.0,87513.0,0.01144]
[1766540655467,0.01142609,87519.0,87512.0,0.00035816]
[1766540655638,0.01142595,87520.0,87512.0,0.00035816]
[1766540655837,0.01142622,87518.0,87512.0,0.00035816]
[1766540656036,0.01142609,87519.0,87512.0,0.00035816]
[1766540656232,0.01142622,87518.0,87512.0,0.00035816]
[1766540656463,0.01142635,87517.0,87512.0,0.00035816]
[1766540656801,0.06855947,87516.0,87512.0,0.00035816]
[1766540657101,0.02285362,87514.0,87512.0,0.00035816]
[1766540658342,0.05712987,87520.0,87512.0,0.00035816]
[1766540658343,0.01144,87519.0,87512.0,0.00035816]
[1766540658540,0.01142439,87532.0,87520.0,0.00034407]
[1766540658740,0.01144,87533.0,87527.0,0.00028045]
[1766540658944,0.02286426,87533.0,87527.0,0.00028045]
[1766540659737,0.01142413,87534.0,87527.0,0.00028045]
[1766540659930,0.06854804,87530.0,87527.0,0.00028045]
[1766540661075,0.01142465,87530.0,87527.0,0.00028045]
[1766540661499,0.06854811,87530.0,87527.0,0.00028045]
[1766540662524,0.17256457,87528.0,87523.0,7.2e-07]
[1766540662732,0.06854811,87530.0,87523.0,7.2e-07]
[1766540662733,0.11544,87525.0,87523.0,7.2e-07]
[1766540667570,0.03071478,87551.0,87533.0,0.02285362]
[1766540667760,0.01,87579.0,87533.0,0.02285362]
[1766540667761,0.05719848,87569.0,87551.0,0.01285191]
[1766540668074,0.11544,87568.0,87556.0,0.01142126]
[1766540668284,0.0001,87569.0,87566.0,0.01141995]
[1766540668421,0.05708753,87585.0,87570.0,0.01141943]
[1766540668422,0.01141748,87585.0,87570.0,0.01141943]
[1766540668657,0.01148,87584.0,87572.0,0.01141917]
[1766540668863,0.05709026,87581.0,87568.0,0.01141969]
[1766540669058,0.01141826,87579.0,87568.0,0.01141969]
[1766540669306,0.01141839,87578.0,87567.0,0.01141982]
[1766540669504,0.01141839,87578.0,87566.0,0.01274995]
[1766540669505,0.01141865,87576.0,87566.0,0.01274995]
[1766540669726,0.01141839,87578.0,87567.0,0.01141982]
[1766540669934,0.01141878,87575.0,87565.0,0.01141982]
[1766540670316,0.01141904,87573.0,87565.0,0.01141982]
[1766540670524,0.01141891,87574.0,87565.0,0.01141982]
[1766540671508,0.01141878,87575.0,87565.0,0.01141982]
[1766540672100,0.01141917,87572.0,87565.0,0.01141982]
[1766540672303,0.0114193,87571.0,87565.0,0.01141982]
[1766540672853,0.01141943,87570.0,87565.0,0.01141982]
[1766540673054,0.0114193,87571.0,87565.0,0.01141982]
[1766540673413,0.01141943,87570.0,87561.0,0.01148]
[1766540673657,0.0114193,87571.0,87562.0,0.0114193]
[1766540673863,0.01142047,87562.0,87536.0,0.22847735]
[1766540674010,0.11584,87559.0,87550.0,0.01142204]
[1766540674212,0.02286047,87562.0,87552.0,0.0001]
[1766540674700,0.01144,87562.0,87552.0,0.01152178]
[1766540674877,0.01144,87562.0,87553.0,0.01142165]
[1766540675078,0.01141995,87566.0,87556.0,0.01142126]
[1766540675378,8e-08,87565.0,87555.0,0.06984]
[1766540675578,8e-08,87565.0,87555.0,0.08126139]
[1766540675579,0.01142016,87565.0,87555.0,0.08126139]
[1766540675742,8e-08,87565.0,87555.0,0.06984]
[1766540676193,8e-08,87565.0,87556.0,0.01142126]
[1766540676870,8e-08,87565.0,87555.0,0.08126139]
[1766540677073,0.01142016,87565.0,87555.0,0.08126139]
[1766540677455,0.01142016,87565.0,87555.0,0.01142139]
[1766540677456,8e-08,87565.0,87555.0,0.01142139]
[1766540677657,8e-08,87565.0,87554.0,0.01142152]
[1766540677658,0.000549,87555.0,87554.0,0.01148]
[1766540677977,0.011421,87558.0,87554.0,0.01148]
[1766540678173,0.01827162,87556.0,87554.0,0.01093]
[1766540678378,0.02969288,87556.0,87552.0,0.0001]
[1766540678586,0.02969288,87556.0,87549.0,0.011421]
[1766540678587,0.0001,87552.0,87549.0,0.011421]
[1766540678777,0.00020745,87552.0,87543.0,0.02290295]
[1766540678971,0.01142087,87559.0,87545.0,0.05831]
[1766540679197,0.011421,87558.0,87547.0,0.01142243]
[1766540679392,0.011421,87558.0,87548.0,0.0114223]
[1766540679600,0.01827162,87559.0,87548.0,0.0114223]
[1766540679907,0.02969249,87559.0,87549.0,0.01142217]
[1766540680106,0.01827162,87559.0,87550.0,0.01142204]
[1766540680275,0.02969249,87559.0,87548.0,0.0114223]
[1766540680471,0.01142113,87557.0,87544.0,0.01148]
[1766540680787,0.01142126,87556.0,87544.0,0.02290282]
[1766540680962,0.01142139,87555.0,87545.0,0.01142269]
[1766540681157,0.01142126,87556.0,87545.0,0.01142269]
[1766540681158,0.01142126,87556.0,87546.0,0.01142256]
[1766540681794,0.01142126,87556.0,87545.0,0.01142269]
[1766540682003,0.01142152,87554.0,87544.0,0.02290282]
[1766540682258,0.13581139,87555.0,87545.0,0.01148]
[1766540682440,0.12439,87555.0,87545.0,0.02290269]
[1766540682610,0.12439,87555.0,87546.0,0.01142256]
[1766540683012,0.13581139,87555.0,87545.0,0.02290269]
[1766540683420,0.12439,87555.0,87545.0,0.02290269]
[1766540683649,0.12439,87555.0,87546.0,0.01142256]
[1766540685323,0.13581139,87555.0,87545.0,0.01148]
[1766540685708,0.13581139,87555.0,87545.0,0.02290269]
[1766540686105,0.12439,87555.0,87546.0,0.01142256]
[1766540686977,0.12439,87555.0,87547.0,0.01142243]
[1766540688677,0.12439,87555.0,87548.0,0.0114223]
[1766540689673,0.12439,87555.0,87546.0,0.01142256]
[1766540689917,0.12439,87555.0,87547.0,0.01142243]
[1766540690660,0.12439,87555.0,87548.0,0.0114223]
[1766540690860,0.12439,87555.0,87547.0,0.01142243]
[1766540691187,0.13581139,87555.0,87545.0,0.01148]
[1766540691386,0.01142152,87554.0,87545.0,0.01148]
[1766540692182,0.01142165,87553.0,87545.0,0.01148]
[1766540692397,0.02286113,87557.0,87546.0,0.0172]
[1766540692598,0.01142139,87555.0,87546.0,0.0172]
[1766540693282,0.01142126,87556.0,87546.0,0.02862256]
[1766540693928,0.02286113,87557.0,87547.0,0.01142243]
[1766540694328,0.01142139,87555.0,87546.0,0.0172]
[1766540694865,0.000449,87546.0,87542.0,0.01142308]
[1766540694985,0.01142139,87555.0,87542.0,0.01142308]
[1766540694986,0.01144,87557.0,87545.0,0.05711293]
[1766540695187,0.01144,87557.0,87548.0,0.0114223]
[1766540695437,0.01144,87556.0,87548.0,0.0114223]
[1766540695640,0.01144,87558.0,87548.0,0.0114223]
[1766540695837,0.01144,87558.0,87550.0,0.01142204]
[1766540696173,0.01144,87558.0,87549.0,0.01142217]
[1766540696495,0.01144,87558.0,87550.0,0.01142204]
[1766540697089,0.022861,87558.0,87548.0,0.0114223]
[1766540697289,0.01142113,87557.0,87547.0,0.01142243]
[1766540697562,0.01142126,87556.0,87546.0,0.01142256]
[1766540697971,0.01144,87558.0,87552.0,0.01827162]
[1766540698201,0.01144,87562.0,87556.0,0.000549]
[1766540698506,0.01144,87562.0,87552.0,0.01827162]
[1766540698880,0.02286047,87562.0,87552.0,0.0296934]
[1766540699849,0.02286047,87562.0,87552.0,0.02945557]
[1766540700292,0.010891,87562.0,87553.0,0.01142165]
[1766540700459,0.02231147,87562.0,87552.0,0.01803379]
[1766540700623,0.0114206,87561.0,87552.0,0.01803379]
[1766540701661,0.01142074,87560.0,87552.0,0.01803379]
[1766540701857,0.010891,87562.0,87552.0,0.01803379]
[1766540702060,0.01142074,87560.0,87552.0,0.01803379]
[1766540702257,0.02231147,87562.0,87552.0,0.01803379]
[1766540702258,0.01142087,87559.0,87552.0,0.01803379]
[1766540702559,0.01142074,87560.0,87552.0,0.01803379]
[1766540703026,0.01142087,87559.0,87552.0,0.01803379]
[1766540703535,0.010891,87562.0,87552.0,0.01803379]
[1766540703722,0.01142074,87560.0,87552.0,0.01803379]
[1766540703910,0.0114206,87561.0,87552.0,0.01803379]
[1766540704110,0.01142074,87560.0,87552.0,0.01803379]
[1766540705983,0.0114206,87561.0,87552.0,0.01803379]
[1766540706817,0.01142087,87559.0,87552.0,0.01803379]
[1766540706983,0.01142074,87560.0,87552.0,0.01803379]
[1766540708103,0.0114206,87561.0,87552.0,0.01803379]
[1766540708279,0.01142074,87560.0,87552.0,0.01803379]
[1766540708619,0.0114206,87561.0,87552.0,0.01803379]
[1766540709606,0.01142074,87560.0,87552.0,0.01803379]
[1766540709942,0.0114206,87561.0,87552.0,0.01803379]
[1766540710227,0.01142074,87560.0,87552.0,0.01803379]
[1766540710428,0.0114206,87561.0,87552.0,0.01803379]
[1766540710792,0.01142074,87560.0,87552.0,0.01803379]
[1766540711015,0.01142087,87559.0,87552.0,0.01803379]
[1766540714461,0.01142074,87560.0,87552.0,0.01803379]
[1766540714674,0.01142047,87562.0,87552.0,0.01803379]
[1766540715014,0.01142047,87562.0,87552.0,0.02945557]
[1766540715560,0.0114206,87561.0,87552.0,0.02945557]
[1766540715766,0.01142034,87563.0,87552.0,0.02945557]
[1766540715998,0.0114206,87561.0,87552.0,0.02945557]
[1766540716170,0.0114206,87561.0,87552.0,0.01803379]
[1766540716775,0.01142047,87562.0,87553.0,0.01142165]
[1766540716941,0.01142047,87562.0,87552.0,0.02945557]
[1766540717137,0.01142047,87562.0,87553.0,0.01142165]
[1766540717341,0.01142047,87562.0,87552.0,0.02945557]
[1766540717678,0.13295034,87563.0,87552.0,0.02945557]
[1766540717844,0.01142047,87562.0,87553.0,0.01142165]
[1766540718039,0.0114206,87561.0,87552.0,0.02945557]
[1766540718538,0.01142047,87562.0,87552.0,0.02945557]
[1766540718745,0.1329506,87561.0,87552.0,0.01803379]
[1766540720149,0.1329506,87561.0,87552.0,0.02945557]
[1766540720346,0.12153,87561.0,87552.0,0.02945557]
[1766540720774,0.1329506,87561.0,87552.0,0.01803379]
[1766540721587,0.12153,87561.0,87552.0,0.02945557]
[1766540721972,0.1329506,87561.0,87552.0,0.01803379]
[1766540722303,0.1329506,87561.0,87552.0,0.02945557]
[1766540722505,0.12153,87561.0,87552.0,0.01803379]
[1766540722842,0.12153,87559.0,87552.0,0.01803379]
[1766540723011,0.0114206,87561.0,87552.0,0.01803379]
[1766540723212,8e-08,87565.0,87553.0,0.01144]